bitfinex/quotes_SOLUSD_20220118
["timestamp","ask_amount","ask_price","bid_price","bid_amount"]
[1642511888969,2.942,135.98,135.91,0.25]
[1642511889171,2.942,135.98,135.9,39.45485154]
[1642511889370,43.05493981,135.98,135.9,39.45485154]
[1642511889670,11.0366,135.96,135.91,0.25]
[1642511889870,43.05493981,135.98,135.9,39.45485154]
[1642511890070,40.11293981,135.98,135.91,0.25]
[1642511890470,39.7263,136.01,135.91,4.43000717]
[1642511890670,11.0341,136.0,135.92,2.942]
[1642511891074,11.0341,136.0,135.93,0.25]
[1642511891574,2.942,136.01,135.93,43.23089665]
[1642511891773,13.9745,136.01,135.93,54.26319665]
[1642511892173,11.0325,136.01,135.94,13.421]
[1642511892571,11.0325,136.01,135.95,0.25]
[1642511892973,11.0325,136.01,135.94,13.421]
[1642511893171,13.9735,136.01,135.94,13.421]
[1642511893770,11.0359,135.99,135.94,2.941]
[1642511893972,0.25,136.0,135.94,2.941]
[1642511893973,2.941,135.98,135.94,2.941]
[1642511894171,2.441,135.99,135.94,2.941]
[1642511894371,2.942,135.97,135.94,2.941]
[1642511894571,35.44291428,135.98,135.94,2.941]
[1642511894771,2.942,135.97,135.94,2.941]
[1642511895375,2.942,135.97,135.9,35.4119]
[1642511895376,13.9785,135.97,135.9,35.4119]
[1642511895571,13.9785,135.97,135.9,24.9319]
[1642511895771,0.25,135.96,135.9,0.1]
[1642511895973,38.54737704,135.94,135.9,0.1]
[1642511896273,2.942,135.93,135.9,0.1]
[1642511897073,36.797,135.97,135.9,0.1]
[1642511897276,2.942,135.96,135.9,0.1]
[1642511897474,36.797,135.97,135.9,0.1]
[1642511897673,2.942,135.96,135.9,0.1]
[1642511897877,41.54203983,135.95,135.9,0.1]
[1642511898275,52.58003983,135.95,135.9,0.1]
[1642511898674,2.942,135.96,135.9,0.1]
[1642511898877,2.942,135.98,135.9,0.1]
[1642511899677,45.01786578,135.97,135.9,0.1]
[1642511899876,2.942,135.96,135.9,0.1]
[1642511900075,13.9791,135.96,135.9,0.1]
[1642511901679,0.30056218,136.13,135.9,0.1]
[1642511901680,2.942,135.98,135.9,0.35]
[1642511901878,2.942,135.99,135.91,13.422]
[1642511902079,2.941,136.02,135.91,13.422]
[1642511902279,6.0,136.02,135.91,24.4552]
[1642511902479,46.9807004,136.01,135.92,44.91465559]
[1642511902680,55.0730004,136.01,135.91,13.422]
[1642511902879,2.942,136.0,135.92,4.17958952]
[1642511903681,0.25,135.99,135.92,4.17958952]
[1642511903881,2.942,135.98,135.92,4.17958952]
[1642511904080,48.23080807,135.97,135.9,44.38567541]
[1642511904281,13.9792,135.96,135.9,44.38567541]
[1642511904881,2.942,135.96,135.9,44.38567541]
[1642511905986,2.942,135.98,135.9,54.86567541]
[1642511906182,2.942,135.98,135.91,0.25]
[1642511906384,11.0348,135.99,135.92,10.48]
[1642511906783,11.0348,135.99,135.93,44.43363204]
[1642511907187,39.55545081,136.0,135.93,44.43363204]
[1642511907392,2.941,136.01,135.93,44.43363204]
[1642511907588,2.941,136.02,135.93,44.43363204]
[1642511907791,2.941,136.03,135.94,10.48]
[1642511908088,2.941,136.05,135.94,10.48]
[1642511908289,2.941,136.05,135.95,0.25]
[1642511908493,2.941,136.05,135.96,10.48]
[1642511908690,234.02222961,136.06,135.98,11.0281]
[1642511908890,2.94,136.05,135.97,0.25]
[1642511909090,2.94,136.05,135.97,10.48]
[1642511909294,2.94,136.05,135.98,0.25]
[1642511909490,40.33777533,136.05,135.98,49.21504021]
[1642511909690,51.36737533,136.05,135.98,49.21504021]
[1642511910289,51.36737533,136.05,135.98,52.15504021]
[1642511910490,51.36737533,136.05,135.98,51.90504021]
[1642511910690,2.94,136.04,135.98,51.90504021]
[1642511910994,11.031,136.03,135.98,51.90504021]
[1642511911494,2.441,136.02,135.98,48.96504021]
[1642511911695,11.031,136.03,135.98,48.96504021]
[1642511911894,48.98547075,136.02,135.97,10.48]
[1642511912094,62.95817075,136.02,135.94,10.48]
[1642511912294,62.95817075,136.02,135.94,16.48]
[1642511912694,62.95817075,136.02,135.94,10.48]
[1642511912895,62.95817075,136.02,135.95,36.60904938]
[1642511913697,13.9727,136.02,135.95,36.60904938]
[1642511914099,11.0317,136.02,135.95,36.60904938]
[1642511914698,11.0317,136.02,135.96,0.25]
[1642511915199,46.5367316,136.01,135.96,0.25]
[1642511915398,57.5692316,136.01,135.96,0.25]
[1642511916036,11.0325,136.01,135.96,0.25]
[1642511918435,11.0325,136.01,135.94,13.421]
[1642511919636,36.32132464,135.99,135.92,60.65870804]
[1642511919837,2.942,135.98,135.92,60.65870804]
[1642511920037,2.942,135.98,135.92,23.3195]
[1642511920841,11.0359,135.97,135.92,23.3195]
[1642511921141,2.942,135.96,135.92,47.75039615]
[1642511921339,42.61487472,135.96,135.92,47.75039615]
[1642511921547,2.942,136.0,135.92,47.75039615]
[1642511921839,2.942,135.97,135.92,47.75039615]
[1642511922040,0.25,135.99,135.92,47.75039615]
[1642511922243,2.942,135.98,135.92,47.75039615]
[1642511922642,36.41072658,135.97,135.9,33.3939]
[1642511922940,2.942,135.96,135.91,6.0]
[1642511923241,47.44622658,135.97,135.91,6.0]
[1642511923641,47.44622658,135.97,135.91,42.81194622]
[1642511924240,47.44622658,135.97,135.9,22.9139]
[1642511924442,2.942,135.96,135.9,22.9139]
[1642511924642,11.0375,135.95,135.9,0.1]
[1642511924846,2.942,135.94,135.9,0.1]
[1642511925242,39.48337621,135.93,135.9,0.1]
[1642511926042,2.942,135.94,135.9,0.1]
[1642511926447,11.0394,135.93,135.9,0.1]
[1642511928246,11.0394,135.93,135.91,6.06439994]
[1642511928449,2.943,135.92,135.91,6.06439994]
[1642511928850,2.943,135.92,135.9,0.1]
[1642511929648,2.943,135.92,135.91,3.03219997]
[1642511929848,36.7987,135.96,135.9,0.1]
[1642511929849,13.9807,135.95,135.9,0.1]
[1642511930051,11.0377,135.95,135.9,0.1]
[1642511931252,52.47466964,135.95,135.9,0.1]
[1642511931455,13.9797,135.95,135.9,0.1]
[1642511932350,11.0377,135.95,135.9,0.1]
[1642511932549,13.9797,135.95,135.9,0.1]
[1642511934782,0.25,135.94,135.9,0.1]
[1642511934982,13.9825,135.93,135.9,0.1]
[1642511935182,62.1160544,135.93,135.9,0.1]
[1642511935483,1.78905272,135.92,135.76,4.34013781]
[1642511935682,2.943,135.91,135.76,0.5]
[1642511935887,13.423,135.91,135.84,2.736e-05]
[1642511936080,8.03905272,135.9,135.84,2.736e-05]
[1642511936281,73.17,135.88,135.84,2.736e-05]
[1642511936483,108.48017931,135.86,135.84,2.736e-05]
[1642511936685,0.25,135.85,135.84,2.736e-05]
[1642511936881,2.944,135.85,135.84,2.736e-05]
[1642511937081,2.944,135.86,135.76,121.59198401]
[1642511937281,2.944,135.87,135.77,14.66443325]
[1642511937482,11.0443,135.87,135.77,20.66443325]
[1642511937681,76.115,135.86,135.77,20.66443325]
[1642511937886,41.09946917,135.85,135.77,20.66443325]
[1642511938080,2.945,135.84,135.77,20.16443325]
[1642511938281,41.09946917,135.85,135.78,3.68443325]
[1642511938482,11.0468,135.84,135.78,3.68443325]
[1642511938683,19.3498,135.84,135.78,3.68443325]
[1642511939484,6.0,135.83,135.78,3.68443325]
[1642511939683,13.9959,135.82,135.78,3.68443325]
[1642511940083,13.9959,135.82,135.78,42.43633767]
[1642511940284,13.9959,135.82,135.76,4.18443325]
[1642511940483,11.0509,135.82,135.76,4.18443325]
[1642511940986,11.0509,135.82,135.76,0.5]
[1642511941285,50.89918043,135.82,135.77,42.33952323]
[1642511941686,11.0509,135.82,135.77,42.33952323]
[1642511942086,2.945,135.85,135.77,42.33952323]
[1642511942284,11.0461,135.84,135.77,42.33952323]
[1642511944086,11.0461,135.84,135.78,4.18418037]
[1642511944288,2.945,135.83,135.78,4.18418037]
[1642511944489,13.9914,135.83,135.78,4.18418037]
[1642511944786,2.945,135.85,135.78,4.18418037]
[1642511944987,2.945,135.87,135.78,7.12918037]
[1642511945189,2.944,135.92,135.79,0.25]
[1642511945387,11.0398,135.92,135.8,13.424]
[1642511945589,11.0398,135.92,135.81,11.0417]
[1642511945790,11.0398,135.92,135.82,2.944]
[1642511946295,11.0398,135.92,135.83,0.25]
[1642511946491,13.9828,135.92,135.84,2.943]
[1642511946691,13.9828,135.92,135.85,38.4095181]
[1642511947493,2.943,135.92,135.85,38.1595181]
[1642511947892,2.943,135.94,135.86,2.943]
[1642511949195,13.9806,135.94,135.86,2.943]
[1642511950606,13.9806,135.94,135.86,13.9809]
[1642511950798,2.943,135.94,135.86,13.9809]
[1642511951000,13.9797,135.96,135.87,0.25]
[1642511951198,13.9797,135.96,135.87,8.662]
[1642511951199,2.943,135.96,135.87,8.662]
[1642511951401,4.88006111,135.96,135.87,10.75323829]
[1642511951806,4.88006111,135.96,135.88,48.23387796]
[1642511952602,2.943,135.96,135.89,13.12683829]
[1642511953528,13.979,135.96,135.89,2.09123829]
[1642511953728,39.34606898,135.94,135.89,2.09123829]
[1642511953930,2.943,135.93,135.89,2.09123829]
[1642511954929,1.93706111,135.96,135.88,2.09123829]
[1642511955729,1.93706111,135.96,135.89,39.11333125]
[1642511955936,11.0376,135.94,135.89,39.11333125]
[1642511956131,50.9901404,135.94,135.89,39.11333125]
[1642511956331,11.0376,135.94,135.89,39.11333125]
[1642511957233,2.943,135.93,135.89,39.11333125]
[1642511958133,15.91666111,135.96,135.89,39.11333125]
[1642511958933,13.9796,135.96,135.89,41.20456954]
[1642511959736,13.9791,135.95,135.89,41.20456954]
[1642511959933,11.0371,135.95,135.89,41.20456954]
[1642511960336,11.0371,135.95,135.89,39.11333125]
[1642511961235,2.942,135.96,135.89,39.11333125]
[1642511961537,1.93706111,135.97,135.89,44.14656954]
[1642511961739,1.93706111,135.97,135.89,41.20456954]
[1642511962136,1.93706111,135.97,135.89,55.18206954]
[1642511962343,4.87906111,135.98,135.9,2.09123829]
[1642511962538,11.0353,135.97,135.9,2.09123829]
[1642511962737,13.9773,135.97,135.9,2.09123829]
[1642511963539,13.9773,135.97,135.9,13.12593829]
[1642511964944,13.4773,135.97,135.9,13.12593829]
[1642511965641,10.5353,135.97,135.9,13.12593829]
[1642511967244,2.942,135.98,135.91,0.25]
[1642511967446,50.36454917,135.99,135.92,43.36910323]
[1642511968444,12.97136111,135.99,135.92,43.36910323]
[1642511968747,1.93706111,135.99,135.93,0.25]
[1642511969144,1.93706111,135.99,135.93,10.73]
[1642511970244,4.87906111,136.02,135.95,73.17]
[1642511970545,1.93706111,136.02,135.96,10.48]
[1642511970846,1.93706111,136.02,135.96,10.99]
[1642511971044,1.93706111,136.02,135.97,46.24680953]
[1642511971245,1.93706111,136.02,135.97,67.75490953]
[1642511971643,1.93706111,136.02,135.97,56.72680953]
[1642511971844,2.941,136.02,135.96,2.09123829]
[1642511972843,4.87806111,136.02,135.96,36.8864468]
[1642511973443,15.90946111,136.02,135.96,36.8864468]
[1642511974546,15.90946111,136.02,135.94,10.48]
[1642511974748,0.25,136.01,135.93,2.09123829]
[1642511974948,11.0351,135.99,135.94,6.0]
[1642511975150,2.941,135.98,135.93,2.09123829]
[1642511975547,45.6711315,136.0,135.94,38.9833375]
[1642511976351,0.25,135.99,135.94,38.9833375]
[1642511976553,2.941,135.98,135.94,38.9833375]
[1642511977956,2.942,135.99,135.94,38.9833375]
[1642511978154,1.93706111,136.0,135.95,3.191]
[1642511978353,1.93706111,136.0,135.96,10.48]
[1642511978554,1.93706111,136.01,135.96,10.48]
[1642511978854,2.941,136.05,135.97,45.46935782]
[1642511979052,5.65483516,136.06,135.97,45.46935782]
[1642511979285,8.59483516,136.06,135.97,45.46935782]
[1642511979484,2.94,136.06,135.98,10.48]
[1642511979685,2.94,136.06,135.99,0.25]
[1642511979889,13.9687,136.06,135.99,0.25]
[1642511981686,13.9687,136.06,135.98,24.1981]
[1642511981887,11.0287,136.06,135.99,0.25]
[1642511982586,2.94,136.07,135.99,11.2771]
[1642511982787,11.0271,136.08,135.99,11.2771]
[1642511982986,40.97703587,136.07,136.0,40.23143142]
[1642511983188,38.03703587,136.07,136.0,40.23143142]
[1642511983689,2.94,136.09,136.0,40.23143142]
[1642511984086,0.25,136.08,136.0,40.23143142]
[1642511984287,2.94,136.07,136.0,40.23143142]
[1642511984486,13.9672,136.07,136.0,40.23143142]
[1642511984686,56.20185516,136.07,136.0,40.23143142]
[1642511987289,13.9672,136.07,136.0,40.23143142]
[1642511987488,11.0272,136.07,136.01,3.19]
[1642511987691,11.0272,136.07,136.0,40.23143142]
[1642511988489,53.835855,136.07,136.0,40.23143142]
[1642511989692,53.835855,136.07,136.01,0.25]
[1642511990091,53.835855,136.07,136.01,3.19]
[1642511990291,11.0264,136.08,136.01,3.19]
[1642511991393,43.57281835,136.07,136.01,3.19]
[1642511991594,54.60071835,136.07,136.01,2.94]
[1642511991793,2.94,136.06,136.01,2.94]
[1642511991994,76.11,136.06,136.01,2.94]
[1642511992203,0.25,136.05,135.96,49.3122]
[1642511992394,2.941,136.04,135.94,10.48]
[1642511992594,43.38574993,136.03,135.94,10.48]
[1642511992794,2.941,136.02,135.94,10.48]
[1642511992996,10.745,136.02,135.94,10.48]
[1642511993499,38.26822317,136.0,135.94,10.48]
[1642511993695,41.20922317,136.0,135.94,10.48]
[1642511993996,2.941,136.0,135.94,10.48]
[1642511994196,10.745,136.02,135.95,0.25]
[1642511994996,46.71498405,136.01,135.95,0.25]
[1642511995496,57.74788405,136.01,135.95,0.25]
[1642511997700,0.25,136.0,135.94,2.941]
[1642511997900,11.0354,135.99,135.94,2.941]
[1642511998103,2.941,135.98,135.9,25.5257]
[1642511998603,47.98637439,135.98,135.9,25.5257]
[1642511998803,3.192,135.97,135.88,47.45594821]
[1642511999004,42.19843227,135.95,135.88,47.45594821]
[1642512000005,3.192,135.97,135.89,0.25]
[1642512000214,2.942,135.97,135.89,0.25]
[1642512000405,11.0383,135.94,135.89,0.25]
[1642512000808,2.942,135.97,135.89,0.25]
[1642512001005,43.6708147,135.96,135.89,3.192]
[1642512002007,61.1138147,135.96,135.89,3.192]
[1642512002205,61.1138147,135.96,135.89,0.25]
[1642512002407,61.1138147,135.96,135.88,2.942]
[1642512003008,61.1138147,135.96,135.88,40.52421272]
[1642512003411,134.2838147,135.96,135.88,2.942]
[1642512003610,3.192,135.95,135.87,33.1576]
[1642512004009,11.0386,135.93,135.87,33.1576]
[1642512004411,11.0386,135.93,135.88,45.53015565]
[1642512004813,2.942,135.95,135.88,45.53015565]
[1642512005211,2.942,135.95,135.87,33.1576]
[1642512005735,2.942,135.95,135.88,0.25]
[1642512006533,11.0379,135.94,135.87,82.78431175]
[1642512006734,52.29373952,135.93,135.87,82.78431175]
[1642512006942,60.43573952,135.93,135.87,82.78431175]
[1642512007337,57.49273952,135.93,135.87,82.78431175]
[1642512008138,49.35073952,135.93,135.88,0.25]
[1642512008339,2.943,135.95,135.88,0.25]
[1642512008538,11.0386,135.93,135.88,0.25]
[1642512011442,11.0377,135.94,135.88,0.25]
[1642512011739,17.0377,135.94,135.88,0.25]
[1642512012239,17.0377,135.94,135.87,25.6206]
[1642512012439,17.0377,135.94,135.85,33.6345]
[1642512012440,11.041,135.91,135.83,13.423]
[1642512012639,2.943,135.9,135.81,63.7060483]
[1642512012841,2.943,135.9,135.81,66.6500483]
[1642512013243,35.79667617,135.89,135.82,42.07764699]
[1642512013441,2.943,135.9,135.82,42.07764699]
[1642512013839,2.943,135.9,135.83,0.25]
[1642512014040,6.504,135.91,135.83,0.25]
[1642512014240,2.943,135.9,135.83,0.25]
[1642512014438,38.62290993,135.9,135.83,0.25]
[1642512014939,49.66400993,135.9,135.82,42.07764699]
[1642512015140,0.25,135.89,135.82,42.07764699]
[1642512015339,2.944,135.88,135.82,42.07764699]
[1642512015540,6.009,135.88,135.82,42.07764699]
[1642512016039,17.0524,135.88,135.82,42.07764699]
[1642512016444,38.44853753,135.87,135.81,49.9015]
[1642512016639,114.81253753,135.87,135.81,46.9575]
[1642512016839,41.64253753,135.87,135.81,46.9575]
[1642512017040,41.64253753,135.87,135.77,2.944]
[1642512017441,41.64253753,135.87,135.78,41.89882622]
[1642512017442,11.0455,135.86,135.78,41.89882622]
[1642512017644,2.945,135.85,135.78,41.89882622]
[1642512017843,2.944,135.86,135.78,41.89882622]
[1642512018642,11.0457,135.85,135.79,0.25]
[1642512018945,2.944,135.86,135.79,0.25]
[1642512019142,2.944,135.88,135.79,0.25]
[1642512019442,3.194,135.88,135.79,0.25]
[1642512020443,11.0441,135.87,135.79,11.2936]
[1642512020643,2.944,135.86,135.79,11.2936]
[1642512021144,43.55836734,135.87,135.79,0.25]
[1642512022247,43.55836734,135.87,135.79,3.194]
[1642512022446,11.0443,135.86,135.79,3.194]
[1642512023048,18.2033,135.86,135.79,3.194]
[1642512023246,18.2033,135.86,135.8,4.18274209]
[1642512023448,18.2033,135.86,135.81,40.2521207]
[1642512023647,18.2033,135.86,135.81,40.5021207]
[1642512024348,11.0443,135.86,135.81,40.5021207]
[1642512027754,60.08055257,135.86,135.81,40.5021207]
[1642512028156,11.0443,135.86,135.81,40.5021207]
[1642512028555,11.0433,135.88,135.81,40.5021207]
[1642512028956,2.944,135.9,135.81,50.9821207]
[1642512029160,51.80520743,135.92,135.81,50.9821207]
[1642512029358,51.80520743,135.92,135.82,24.9607]
[1642512029759,11.0409,135.91,135.83,0.25]
[1642512029961,19.3309,135.91,135.83,0.25]
[1642512030560,0.25,135.9,135.82,24.9607]
[1642512030761,11.0434,135.88,135.82,24.9607]
[1642512031060,50.96411057,135.87,135.82,24.9607]
[1642512031461,2.944,135.87,135.82,24.9607]
[1642512031668,2.944,135.87,135.81,40.2521207]
[1642512031885,11.0435,135.87,135.8,27.4461]
[1642512032088,2.944,135.86,135.8,24.5021]
[1642512032285,2.944,135.87,135.79,4.18274301]
[1642512032686,38.65346405,135.86,135.79,4.18274301]
[1642512032986,2.944,135.85,135.78,49.02654233]
[1642512033286,9.838,135.85,135.78,4.18274301]
[1642512033487,20.8841,135.85,135.78,4.18274301]
[1642512033686,20.8841,135.85,135.79,0.25]
[1642512033886,9.838,135.85,135.79,0.25]
[1642512034087,2.944,135.85,135.79,0.25]
[1642512034289,2.945,135.88,135.79,0.25]
[1642512034489,11.0445,135.87,135.79,0.25]
[1642512034886,2.945,135.88,135.79,73.42]
[1642512035088,1.4505593,135.89,135.8,10.48]
[1642512035288,1.4505593,135.89,135.81,0.25]
[1642512035490,1.4505593,135.89,135.82,21.5202]
[1642512035699,1.4505593,135.89,135.83,0.25]
[1642512035898,8.59883516,135.96,135.84,59.48]
[1642512036098,5.65483516,135.96,135.85,98.04495926]
[1642512036298,5.65483516,135.96,135.86,13.423]
[1642512036697,5.65483516,135.96,135.88,41.49015991]
[1642512036902,298.84204661,135.99,135.89,13.422]
[1642512037098,298.84204661,135.99,135.89,21.27361339]
[1642512037297,2.942,136.01,135.9,1.60161339]
[1642512037505,2.942,136.01,135.91,13.422]
[1642512037698,8.59683516,136.02,135.91,13.672]
[1642512038098,47.39201261,136.02,135.92,42.76313797]
[1642512038300,47.39201261,136.02,135.93,3.191]
[1642512038505,58.42411261,136.02,135.93,14.2231]
[1642512038904,13.9741,136.02,135.93,14.2231]
[1642512039407,2.942,136.02,135.93,14.2231]
[1642512039603,2.941,136.04,135.95,73.17]
[1642512039805,5.65483516,136.05,135.97,11.0283]
[1642512040003,5.65483516,136.05,135.98,48.63839237]
[1642512040203,5.65483516,136.05,135.98,48.88839237]
[1642512040403,5.65483516,136.06,135.98,48.88839237]
[1642512040808,5.65483516,136.06,135.98,59.91619237]
[1642512041702,4.17873026,136.08,135.98,59.91619237]
[1642512042106,4.17873026,136.08,135.99,10.48]
[1642512042304,4.17873026,136.08,136.01,11.0249]
[1642512042503,4.17873026,136.08,136.01,13.9649]
[1642512042703,4.17873026,136.08,136.02,10.73]
[1642512042902,4.17873026,136.08,136.03,2.94]
[1642512043109,4.17873026,136.08,136.03,45.93036617]
[1642512043304,4.17873026,136.08,136.04,0.25]
[1642512043511,5.65483516,136.11,136.04,0.25]
[1642512043702,16.67823516,136.11,136.04,0.25]
[1642512043904,11.0234,136.11,136.04,0.25]
[1642512044104,2.94,136.12,136.04,10.73]
[1642512044304,8.59383516,136.14,136.05,76.109]
[1642512044504,5.65483516,136.14,136.06,38.94071549]
[1642512044706,5.65483516,136.14,136.06,49.67071549]
[1642512045303,2.939,136.15,136.06,49.67071549]
[1642512045503,5.65483516,136.16,136.07,2.938]
[1642512045704,5.65483516,136.16,136.08,0.25]
[1642512045903,5.65483516,136.16,136.09,13.418]
[1642512046105,5.65483516,136.16,136.1,36.53815404]
[1642512046303,5.65483516,136.16,136.1,36.78815404]
[1642512046503,16.67323516,136.18,136.1,36.78815404]
[1642512046705,5.65483516,136.18,136.1,36.78815404]
[1642512046903,5.65483516,136.18,136.11,10.48]
[1642512047105,5.65483516,136.18,136.12,2.938]
[1642512047408,5.65483516,136.18,136.12,13.668]
[1642512047607,5.65483516,136.18,136.13,40.3568014]
[1642512047807,5.65483516,136.21,136.14,0.25]
[1642512048009,8.936,136.2,136.14,0.25]
[1642512048306,2.936,136.2,136.14,0.25]
[1642512048504,13.9528,136.2,136.14,0.25]
[1642512048704,2.936,136.2,136.14,0.25]
[1642512048906,2.936,136.2,136.14,10.73]
[1642512049305,5.65483516,136.21,136.14,13.926]
[1642512049705,52.48475728,136.23,136.14,13.666]
[1642512050009,45.13322519,136.2,136.14,10.48]
[1642512050208,3.186,136.19,136.1,10.48]
[1642512050405,4.97505272,136.19,136.08,10.48]
[1642512050605,1.78905272,136.18,136.08,10.48]
[1642512050805,11.0219,136.15,136.08,10.48]
[1642512051008,2.938,136.14,136.09,35.7225592]
[1642512051406,2.938,136.17,136.09,35.7225592]
[1642512051609,2.938,136.19,136.1,0.25]
[1642512052210,11.0187,136.17,136.1,0.25]
[1642512052713,0.25,136.16,136.08,10.48]
[1642512052911,2.938,136.15,136.05,24.5481]
[1642512053114,6.0,136.14,136.05,24.5481]
[1642512053312,11.0247,136.11,136.05,24.5481]
[1642512053512,2.939,136.1,136.02,34.4866]
[1642512053712,2.939,136.1,136.03,36.42131231]
[1642512053913,2.939,136.12,136.03,36.42131231]
[1642512054113,2.939,136.12,136.04,0.25]
[1642512055513,11.0253,136.09,136.04,0.25]
[1642512055713,11.0253,136.09,136.03,36.42131231]
[1642512055916,2.939,136.08,136.03,36.42131231]
[1642512056114,2.939,136.08,135.99,27.538]
[1642512056413,2.94,136.09,135.99,2.939]
[1642512056613,14.2178,136.07,135.99,2.939]
[1642512056818,11.2778,136.07,135.99,2.939]
[1642512057016,11.2778,136.07,136.0,35.37128101]
[1642512057216,2.94,136.06,136.0,35.37128101]
[1642512057418,2.94,136.07,136.0,35.37128101]
[1642512058046,0.25,136.06,136.0,35.37128101]
[1642512058215,11.0289,136.05,136.0,35.37128101]
[1642512058817,2.94,136.07,136.0,35.37128101]
[1642512059015,2.94,136.1,136.0,35.37128101]
[1642512059217,11.0249,136.1,136.01,3.189]
[1642512059415,2.94,136.13,136.02,10.48]
[1642512059616,2.94,136.13,136.03,2.939]
[1642512059815,2.94,136.13,136.04,44.99477893]
[1642512060320,2.94,136.13,136.05,0.25]
[1642512060616,11.0233,136.12,136.05,0.25]
[1642512060816,11.0233,136.12,136.05,3.189]
[1642512061015,8.59383516,136.15,136.05,3.189]
[1642512061217,5.65483516,136.15,136.06,10.48]
[1642512061515,5.65483516,136.15,136.07,39.22568636]
[1642512061717,5.65483516,136.16,136.08,73.17]
[1642512061919,5.65483516,136.16,136.09,2.938]
[1642512062116,5.65483516,136.16,136.09,13.668]
[1642512062715,5.65483516,136.16,136.1,38.5331985]
[1642512062918,5.65483516,136.19,136.11,2.938]
[1642512063116,5.65483516,136.19,136.11,86.838]
[1642512063316,5.65483516,136.19,136.11,95.035]
[1642512063522,5.65483516,136.19,136.11,95.295]
[1642512063918,2.938,136.21,136.11,95.295]
[1642512064117,5.65483516,136.22,136.11,95.295]
[1642512064318,5.65483516,136.22,136.11,87.098]
[1642512065018,5.65483516,136.22,136.12,6.0]
[1642512065219,178.29559681,136.23,136.13,10.73]
[1642512065548,175.35959681,136.23,136.13,10.73]
[1642512065719,175.35959681,136.23,136.13,83.9]
[1642512065919,175.35959681,136.23,136.13,10.73]
[1642512066121,175.35959681,136.23,136.14,42.74926679]
[1642512066321,175.35959681,136.23,136.15,10.73]
[1642512066921,5.65483516,136.24,136.15,10.73]
[1642512067123,5.65483516,136.24,136.16,2.936]
[1642512067322,5.65483516,136.24,136.17,0.25]
[1642512067523,11.0137,136.23,136.17,38.7831985]
[1642512068624,2.936,136.24,136.17,38.7831985]
[1642512068625,13.9489,136.24,136.17,38.7831985]
[1642512069828,2.936,136.24,136.17,38.7831985]
[1642512070028,8.34707035,136.26,136.18,2.936]
[1642512070228,8.34707035,136.26,136.19,10.73]
[1642512070426,2.936,136.3,136.21,34.15843163]
[1642512070628,6.0,136.29,136.21,34.15843163]
[1642512070830,2.935,136.28,136.22,0.25]
[1642512071032,13.9453,136.28,136.22,0.25]
[1642512071728,11.0103,136.28,136.22,0.25]
[1642512072631,11.0103,136.28,136.21,34.15843163]
[1642512072830,0.25,136.27,136.14,2.935]
[1642512073066,11.0147,136.24,136.17,10.48]
[1642512073268,2.936,136.23,136.17,0.25]
[1642512073765,2.936,136.24,136.17,0.25]
[1642512073965,11.0145,136.22,136.14,10.48]
[1642512074165,0.25,136.21,136.11,71.5199]
[1642512074366,14.616,136.21,136.09,10.48]
[1642512074564,14.616,136.21,136.07,13.416]
[1642512074964,11.0192,136.18,136.08,48.08331781]
[1642512075164,2.938,136.17,136.09,10.48]
[1642512075366,2.938,136.19,136.09,10.48]
[1642512076266,2.938,136.19,136.1,0.25]